Workbook

Sheet Gradient Function A
F1: =MIN(F3:F203) -> -0.56 | G1: =MAX(G3:G203) -> -2.44 | H1: =AA4 -> -0.6 | N1: =IF(M6=0,"",3) -> 3 | Q1: =IF(P2="","","2") -> 2
K2: y | L2: = | M2: =IF(M6=0,"",M6) -> 1 | N2: =IF(M6=0,"","x") -> x | O2: =IF(P6<0,"-",IF(P6=0,"",IF(M2="","","+"))) -> + | P2: =IF(P6=0,"",ABS(P6)) -> 4.6 | Q2: =IF(P2="","","x") -> x | R2: =IF(S6<0,"-",IF(S6=0,"",IF(Q2="","","+"))) -> + | S2: =IF(S6=0,"",ABS(S6)) -> 2 | T2: =IF(S2="","","x") -> x | U2: =IF(V6<0,"-",IF(V6=0,"","+")) -> - | V2: =IF(V6=0,"",ABS(V6)) -> 0.8
B3: -10 | C3: =(M$6*B3^3+P$6*B3^2+S$6*B3+V$6) -> -560.8 | D3: =M$6*3*B3^2+2*P$6*B3+S$6 -> 210 | E3: =IF((B3-AA$4)^2<0.001,D3,11) -> 11 | F3: =IF((B3-AA$4)^2<0.001,C3,11) -> 11 | G3: =IF(F3=11,"",D3) ->  | H3: =B3 -> -10 | I3: =G$1*H3+(F$1-G$1*H$1) -> 22.376
B4: =B3+0.1 -> -9.9 | C4: -540.053 | D4: 204.95 | E4: =IF((B4-AA$4)^2<0.001,D4,11) -> 11 | F4: =IF((B4-AA$4)^2<0.001,C4,11) -> 11 | H4: -9.9 | I4: 22.132 | M4: 90 | P4: 90 | S4: 90 | V4: 90 | Y4: 90 | Z4: 84 | AA4: =(Z4-Y4)/10 -> -0.6
B5: =B4+0.1 -> -9.8 | C5: -519.808 | D5: 199.96 | E5: 11 | F5: 11 | H5: -9.8 | I5: 21.888 | M5: 100 | P5: 136 | S5: 110 | V5: 82
B6: -9.7 | C6: -500.059 | D6: 195.03 | E6: 11 | F6: 11 | H6: -9.7 | I6: 21.644 | M6: =(M5-M4)/10 -> 1 | P6: =(P5-P4)/10 -> 4.6 | S6: =(S5-S4)/10 -> 2 | V6: =(V5-V4)/10 -> -0.8
B7: -9.6 | C7: -480.8 | D7: 190.16 | E7: 11 | F7: 11 | H7: -9.6 | I7: 21.4 | K7: x | M7: y | N7: Gradient
B8: -9.5 | C8: -462.025 | D8: 185.35 | E8: 11 | F8: 11 | H8: -9.5 | I8: 21.156 | N8: values
B9: -9.4 | C9: -443.728 | D9: 180.6 | E9: 11 | F9: 11 | H9: -9.4 | I9: 20.912 | K9: -6 | M9: =C43 -> -63.2 | N9: =D43 -> 54.8
B10: -9.3 | C10: -425.903 | D10: 175.91 | E10: 11 | F10: 11 | H10: -9.3 | I10: 20.668 | K10: =K9+1 -> -5 | M10: =C53 -> -20.8 | N10: =D53 -> 31 | S10: x' value
B11: -9.2 | C11: -408.544 | D11: 171.28 | E11: 11 | F11: 11 | H11: -9.2 | I11: 20.424 | K11: -4 | M11: =C63 -> 0.8 | N11: =D63 -> 13.2 | S11: =H1 -> -0.6
B12: -9.1 | C12: -391.645 | D12: 166.71 | E12: 11 | F12: 11 | H12: -9.1 | I12: 20.18 | K12: -3 | M12: =C73 -> 7.6 | N12: =D73 -> 1.4
B13: -9 | C13: -375.2 | D13: 162.2 | E13: 11 | F13: 11 | H13: -9 | I13: 19.936 | K13: -2 | M13: =C83 -> 5.6 | N13: =D83 -> -4.4
B14: -8.9 | C14: -359.203 | D14: 157.75 | E14: 11 | F14: 11 | H14: -8.9 | I14: 19.692 | K14: -1 | M14: =C93 -> 0.8 | N14: =D93 -> -4.2
B15: -8.8 | C15: -343.648 | D15: 153.36 | E15: 11 | F15: 11 | H15: -8.8 | I15: 19.448 | K15: 0 | M15: =C103 -> -0.8 | N15: =D103 -> 2
B16: -8.7 | C16: -328.529 | D16: 149.03 | E16: 11 | F16: 11 | H16: -8.7 | I16: 19.204 | K16: 1 | M16: =C113 -> 6.8 | N16: =D113 -> 14.2
B17: -8.6 | C17: -313.84 | D17: 144.76 | E17: 11 | F17: 11 | H17: -8.6 | I17: 18.96 | K17: 2 | M17: =C123 -> 29.6 | N17: =D123 -> 32.4 | S17: Gradient at 'x'
B18: -8.5 | C18: -299.575 | D18: 140.55 | E18: 11 | F18: 11 | H18: -8.5 | I18: 18.716 | K18: 3 | M18: =C133 -> 73.6 | N18: =D133 -> 56.6 | S18: =G1 -> -2.44
B19: -8.4 | C19: -285.728 | D19: 136.4 | E19: 11 | F19: 11 | H19: -8.4 | I19: 18.472 | K19: 4 | M19: =C143 -> 144.8 | N19: =D143 -> 86.8
B20: -8.3 | C20: -272.293 | D20: 132.31 | E20: 11 | F20: 11 | H20: -8.3 | I20: 18.228 | K20: 5 | M20: =C153 -> 249.2 | N20: =D153 -> 123
B21: -8.2 | C21: -259.264 | D21: 128.28 | E21: 11 | F21: 11 | H21: -8.2 | I21: 17.984 | K21: 6 | M21: =C163 -> 392.8 | N21: =D163 -> 165.2
B22: -8.1 | C22: -246.635 | D22: 124.31 | E22: 11 | F22: 11 | H22: -8.1 | I22: 17.74
B23: -8 | C23: -234.4 | D23: 120.4 | E23: 11 | F23: 11 | H23: -8 | I23: 17.496
B24: -7.9 | C24: -222.553 | D24: 116.55 | E24: 11 | F24: 11 | H24: -7.9 | I24: 17.252
B25: -7.8 | C25: -211.088 | D25: 112.76 | E25: 11 | F25: 11 | H25: -7.8 | I25: 17.008
B26: -7.7 | C26: -199.999 | D26: 109.03 | E26: 11 | F26: 11 | H26: -7.7 | I26: 16.764
B27: -7.6 | C27: -189.28 | D27: 105.36 | E27: 11 | F27: 11 | H27: -7.6 | I27: 16.52
B28: -7.5 | C28: -178.925 | D28: 101.75 | E28: 11 | F28: 11 | H28: -7.5 | I28: 16.276
B29: -7.4 | C29: -168.928 | D29: 98.2 | E29: 11 | F29: 11 | H29: -7.4 | I29: 16.032
B30: -7.3 | C30: -159.283 | D30: 94.71 | E30: 11 | F30: 11 | H30: -7.3 | I30: 15.788
B31: -7.2 | C31: -149.984 | D31: 91.28 | E31: 11 | F31: 11 | H31: -7.2 | I31: 15.544
B32: -7.1 | C32: -141.025 | D32: 87.91 | E32: 11 | F32: 11 | H32: -7.1 | I32: 15.3
B33: -7 | C33: -132.4 | D33: 84.6 | E33: 11 | F33: 11 | H33: -7 | I33: 15.056
B34: -6.9 | C34: -124.103 | D34: 81.35 | E34: 11 | F34: 11 | H34: -6.9 | I34: 14.812
B35: -6.8 | C35: =(M$6*B35^3+P$6*B35^2+S$6*B35+V$6) -> -116.128 | D35: =M$6*3*B35^2+2*P$6*B35+S$6 -> 78.16 | E35: 11 | F35: 11 | G35: =IF(F35=11,"",D35) ->  | H35: =B35 -> -6.8 | I35: =G$1*H35+(F$1-G$1*H$1) -> 14.568
B36: -6.7 | C36: -108.469 | D36: 75.03 | E36: 11 | F36: 11 | H36: -6.7 | I36: 14.324
B37: -6.6 | C37: -101.12 | D37: 71.96 | E37: 11 | F37: 11 | H37: -6.6 | I37: 14.08
B38: -6.5 | C38: -94.075 | D38: 68.95 | E38: 11 | F38: 11 | H38: -6.5 | I38: 13.836
B39: -6.4 | C39: -87.328 | D39: 66 | E39: 11 | F39: 11 | H39: -6.4 | I39: 13.592
B40: -6.3 | C40: -80.873 | D40: 63.11 | E40: 11 | F40: 11 | H40: -6.3 | I40: 13.348
B41: -6.2 | C41: -74.704 | D41: 60.28 | E41: 11 | F41: 11 | H41: -6.2 | I41: 13.104
B42: -6.1 | C42: -68.815 | D42: 57.51 | E42: 11 | F42: 11 | H42: -6.1 | I42: 12.86
B43: -6 | C43: -63.2 | D43: 54.8 | E43: 11 | F43: 11 | H43: -6 | I43: 12.616
B44: -5.9 | C44: -57.853 | D44: 52.15 | E44: 11 | F44: 11 | H44: -5.9 | I44: 12.372
B45: -5.8 | C45: -52.768 | D45: 49.56 | E45: 11 | F45: 11 | H45: -5.8 | I45: 12.128
B46: -5.7 | C46: -47.939 | D46: 47.03 | E46: 11 | F46: 11 | H46: -5.7 | I46: 11.884
B47: -5.6 | C47: -43.36 | D47: 44.56 | E47: 11 | F47: 11 | H47: -5.6 | I47: 11.64
B48: -5.5 | C48: -39.025 | D48: 42.15 | E48: 11 | F48: 11 | H48: -5.5 | I48: 11.396
B49: -5.4 | C49: -34.928 | D49: 39.8 | E49: 11 | F49: 11 | H49: -5.4 | I49: 11.152
B50: -5.3 | C50: -31.063 | D50: 37.51 | E50: 11 | F50: 11 | H50: -5.3 | I50: 10.908
B51: -5.2 | C51: -27.424 | D51: 35.28 | E51: 11 | F51: 11 | H51: -5.2 | I51: 10.664
B52: -5.1 | C52: -24.005 | D52: 33.11 | E52: 11 | F52: 11 | H52: -5.1 | I52: 10.42
B53: -5 | C53: -20.8 | D53: 31 | E53: 11 | F53: 11 | H53: -5 | I53: 10.176
B54: -4.9 | C54: -17.803 | D54: 28.95 | E54: 11 | F54: 11 | H54: -4.9 | I54: 9.932
B55: -4.8 | C55: -15.008 | D55: 26.96 | E55: 11 | F55: 11 | H55: -4.8 | I55: 9.688
B56: -4.7 | C56: -12.409 | D56: 25.03 | E56: 11 | F56: 11 | H56: -4.7 | I56: 9.444
B57: -4.6 | C57: -10 | D57: 23.16 | E57: 11 | F57: 11 | H57: -4.6 | I57: 9.2
B58: -4.5 | C58: -7.775 | D58: 21.35 | E58: 11 | F58: 11 | H58: -4.5 | I58: 8.956
B59: -4.4 | C59: -5.728 | D59: 19.6 | E59: 11 | F59: 11 | H59: -4.4 | I59: 8.712
B60: -4.3 | C60: -3.853 | D60: 17.91 | E60: 11 | F60: 11 | H60: -4.3 | I60: 8.468
B61: -4.2 | C61: -2.144 | D61: 16.28 | E61: 11 | F61: 11 | H61: -4.2 | I61: 8.224
B62: -4.1 | C62: -0.595 | D62: 14.71 | E62: 11 | F62: 11 | H62: -4.1 | I62: 7.98
B63: -4 | C63: 0.8 | D63: 13.2 | E63: 11 | F63: 11 | H63: -4 | I63: 7.736
B64: -3.9 | C64: 2.047 | D64: 11.75 | E64: 11 | F64: 11 | H64: -3.9 | I64: 7.492
B65: -3.8 | C65: 3.152 | D65: 10.36 | E65: 11 | F65: 11 | H65: -3.8 | I65: 7.248
B66: -3.7 | C66: 4.121 | D66: 9.03 | E66: 11 | F66: 11 | H66: -3.7 | I66: 7.004
B67: -3.6 | C67: =(M$6*B67^3+P$6*B67^2+S$6*B67+V$6) -> 4.96 | D67: =M$6*3*B67^2+2*P$6*B67+S$6 -> 7.76 | E67: 11 | F67: 11 | G67: =IF(F67=11,"",D67) ->  | H67: =B67 -> -3.6 | I67: =G$1*H67+(F$1-G$1*H$1) -> 6.76
B68: -3.5 | C68: 5.675 | D68: 6.55 | E68: =IF((B68-AA$4)^2<0.001,D68,11) -> 11 | F68: =IF((B68-AA$4)^2<0.001,C68,11) -> 11 | H68: -3.5 | I68: 6.516
B69: =B68+0.1 -> -3.4 | C69: 6.272 | D69: 5.4 | E69: 11 | F69: 11 | H69: -3.4 | I69: 6.272
B70: -3.3 | C70: 6.757 | D70: 4.31 | E70: 11 | F70: 11 | H70: -3.3 | I70: 6.028
B71: -3.2 | C71: 7.136 | D71: 3.28 | E71: 11 | F71: 11 | H71: -3.2 | I71: 5.784
B72: -3.1 | C72: 7.415 | D72: 2.31 | E72: 11 | F72: 11 | H72: -3.1 | I72: 5.54
B73: -3 | C73: 7.6 | D73: 1.4 | E73: 11 | F73: 11 | H73: -3 | I73: 5.296
B74: -2.9 | C74: 7.697 | D74: 0.55 | E74: 11 | F74: 11 | H74: -2.9 | I74: 5.052
B75: -2.8 | C75: 7.712 | D75: -0.24 | E75: 11 | F75: 11 | H75: -2.8 | I75: 4.808
B76: -2.7 | C76: 7.651 | D76: -0.97 | E76: 11 | F76: 11 | H76: -2.7 | I76: 4.564
B77: -2.6 | C77: 7.52 | D77: -1.64 | E77: 11 | F77: 11 | H77: -2.6 | I77: 4.32
B78: -2.5 | C78: 7.325 | D78: -2.25 | E78: 11 | F78: 11 | H78: -2.5 | I78: 4.076
B79: -2.4 | C79: 7.072 | D79: -2.8 | E79: 11 | F79: 11 | H79: -2.4 | I79: 3.832
B80: -2.3 | C80: 6.767 | D80: -3.29 | E80: 11 | F80: 11 | H80: -2.3 | I80: 3.588
B81: -2.2 | C81: 6.416 | D81: -3.72 | E81: 11 | F81: 11 | H81: -2.2 | I81: 3.344
B82: -2.1 | C82: 6.025 | D82: -4.09 | E82: 11 | F82: 11 | H82: -2.1 | I82: 3.1
B83: -2 | C83: 5.6 | D83: -4.4 | E83: 11 | F83: 11 | H83: -2 | I83: 2.856
B84: -1.9 | C84: 5.147 | D84: -4.65 | E84: 11 | F84: 11 | H84: -1.9 | I84: 2.612
B85: -1.8 | C85: 4.672 | D85: -4.84 | E85: 11 | F85: 11 | H85: -1.8 | I85: 2.368
B86: -1.7 | C86: 4.181 | D86: -4.97 | E86: 11 | F86: 11 | H86: -1.7 | I86: 2.124
B87: -1.6 | C87: 3.68 | D87: -5.04 | E87: 11 | F87: 11 | H87: -1.6 | I87: 1.88
B88: -1.5 | C88: 3.175 | D88: -5.05 | E88: 11 | F88: 11 | H88: -1.5 | I88: 1.636
B89: -1.4 | C89: 2.672 | D89: -5 | E89: 11 | F89: 11 | H89: -1.4 | I89: 1.392
B90: -1.3 | C90: 2.177 | D90: -4.89 | E90: 11 | F90: 11 | H90: -1.3 | I90: 1.148
B91: -1.2 | C91: 1.696 | D91: -4.72 | E91: 11 | F91: 11 | H91: -1.2 | I91: 0.904
B92: -1.1 | C92: 1.235 | D92: -4.49 | E92: 11 | F92: 11 | H92: -1.1 | I92: 0.66
B93: -1 | C93: 0.8 | D93: -4.2 | E93: 11 | F93: 11 | H93: -1 | I93: 0.416
B94: -0.9 | C94: 0.397 | D94: -3.85 | E94: 11 | F94: 11 | H94: -0.9 | I94: 0.172
B95: -0.8 | C95: 0.032 | D95: -3.44 | E95: 11 | F95: 11 | H95: -0.8 | I95: -0.072
B96: -0.7 | C96: -0.289 | D96: -2.97 | E96: 11 | F96: 11 | H96: -0.7 | I96: -0.316
B97: -0.6 | C97: -0.56 | D97: -2.44 | E97: -2.44 | F97: -0.56 | G97: -2.44 | H97: -0.6 | I97: -0.56
B98: -0.5 | C98: -0.775 | D98: -1.85 | E98: 11 | F98: 11 | H98: -0.5 | I98: -0.804
B99: -0.4 | C99: =(M$6*B99^3+P$6*B99^2+S$6*B99+V$6) -> -0.928 | D99: -1.2 | E99: 11 | F99: 11 | G99: =IF(F99=11,"",D99) ->  | H99: -0.4 | I99: =G$1*H99+(F$1-G$1*H$1) -> -1.048
B100: -0.3 | C100: =(M$6*B100^3+P$6*B100^2+S$6*B100+V$6) -> -1.013 | D100: -0.49 | E100: 11 | F100: 11 | G100: =IF(F100=11,"",D100) ->  | H100: -0.3 | I100: =G$1*H100+(F$1-G$1*H$1) -> -1.292
B101: -0.2 | C101: =(M$6*B101^3+P$6*B101^2+S$6*B101+V$6) -> -1.024 | D101: 0.28 | E101: 11 | F101: 11 | G101: =IF(F101=11,"",D101) ->  | H101: -0.2 | I101: =G$1*H101+(F$1-G$1*H$1) -> -1.536
B102: -0.1 | C102: =(M$6*B102^3+P$6*B102^2+S$6*B102+V$6) -> -0.955 | D102: 1.11 | E102: 11 | F102: 11 | G102: =IF(F102=11,"",D102) ->  | H102: -0.1 | I102: =G$1*H102+(F$1-G$1*H$1) -> -1.78
B103: -1.879052469e-14 | C103: =(M$6*B103^3+P$6*B103^2+S$6*B103+V$6) -> -0.8 | D103: 2 | E103: 11 | F103: 11 | G103: =IF(F103=11,"",D103) ->  | H103: -1.879052469e-14 | I103: =G$1*H103+(F$1-G$1*H$1) -> -2.024
B104: =B103+0.1 -> 0.1 | C104: =(M$6*B104^3+P$6*B104^2+S$6*B104+V$6) -> -0.553 | D104: =M$6*3*B104^2+2*P$6*B104+S$6 -> 2.95 | E104: 11 | F104: 11 | G104: =IF(F104=11,"",D104) ->  | H104: =B104 -> 0.1 | I104: =G$1*H104+(F$1-G$1*H$1) -> -2.268
B105: 0.2 | C105: -0.208 | D105: 3.96 | E105: 11 | F105: 11 | H105: 0.2 | I105: -2.512
B106: 0.3 | C106: 0.241 | D106: 5.03 | E106: 11 | F106: 11 | H106: 0.3 | I106: -2.756
B107: 0.4 | C107: 0.8 | D107: 6.16 | E107: 11 | F107: 11 | H107: 0.4 | I107: -3
B108: 0.5 | C108: 1.475 | D108: 7.35 | E108: 11 | F108: 11 | H108: 0.5 | I108: -3.244
B109: 0.6 | C109: 2.272 | D109: 8.6 | E109: 11 | F109: 11 | H109: 0.6 | I109: -3.488
B110: 0.7 | C110: 3.197 | D110: 9.91 | E110: 11 | F110: 11 | H110: 0.7 | I110: -3.732
B111: 0.8 | C111: 4.256 | D111: 11.28 | E111: 11 | F111: 11 | H111: 0.8 | I111: -3.976
B112: 0.9 | C112: 5.455 | D112: 12.71 | E112: 11 | F112: 11 | H112: 0.9 | I112: -4.22
B113: 1 | C113: 6.8 | D113: 14.2 | E113: 11 | F113: 11 | H113: 1 | I113: -4.464
B114: 1.1 | C114: 8.297 | D114: 15.75 | E114: 11 | F114: 11 | H114: 1.1 | I114: -4.708
B115: 1.2 | C115: 9.952 | D115: 17.36 | E115: 11 | F115: 11 | H115: 1.2 | I115: -4.952
B116: 1.3 | C116: 11.771 | D116: 19.03 | E116: 11 | F116: 11 | H116: 1.3 | I116: -5.196
B117: 1.4 | C117: 13.76 | D117: 20.76 | E117: 11 | F117: 11 | H117: 1.4 | I117: -5.44
B118: 1.5 | C118: 15.925 | D118: 22.55 | E118: 11 | F118: 11 | H118: 1.5 | I118: -5.684
B119: 1.6 | C119: 18.272 | D119: 24.4 | E119: 11 | F119: 11 | H119: 1.6 | I119: -5.928
B120: 1.7 | C120: 20.807 | D120: 26.31 | E120: 11 | F120: 11 | H120: 1.7 | I120: -6.172
B121: 1.8 | C121: 23.536 | D121: 28.28 | E121: 11 | F121: 11 | H121: 1.8 | I121: -6.416
B122: 1.9 | C122: 26.465 | D122: 30.31 | E122: 11 | F122: 11 | H122: 1.9 | I122: -6.66
B123: 2 | C123: 29.6 | D123: 32.4 | E123: 11 | F123: 11 | H123: 2 | I123: -6.904
B124: 2.1 | C124: 32.947 | D124: 34.55 | E124: 11 | F124: 11 | H124: 2.1 | I124: -7.148
B125: 2.2 | C125: 36.512 | D125: 36.76 | E125: 11 | F125: 11 | H125: 2.2 | I125: -7.392
B126: 2.3 | C126: 40.301 | D126: 39.03 | E126: 11 | F126: 11 | H126: 2.3 | I126: -7.636
B127: 2.4 | C127: 44.32 | D127: 41.36 | E127: 11 | F127: 11 | H127: 2.4 | I127: -7.88
B128: 2.5 | C128: 48.575 | D128: 43.75 | E128: 11 | F128: 11 | H128: 2.5 | I128: -8.124
B129: 2.6 | C129: 53.072 | D129: 46.2 | E129: 11 | F129: 11 | H129: 2.6 | I129: -8.368
B130: 2.7 | C130: 57.817 | D130: 48.71 | E130: 11 | F130: 11 | H130: 2.7 | I130: -8.612
B131: 2.8 | C131: 62.816 | D131: 51.28 | E131: 11 | F131: 11 | H131: 2.8 | I131: -8.856
B132: 2.9 | C132: 68.075 | D132: 53.91 | E132: =IF((B132-AA$4)^2<0.001,D132,11) -> 11 | F132: =IF((B132-AA$4)^2<0.001,C132,11) -> 11 | H132: 2.9 | I132: -9.1
B133: 3 | C133: 73.6 | D133: 56.6 | E133: 11 | F133: 11 | H133: 3 | I133: -9.344
B134: 3.1 | C134: 79.397 | D134: 59.35 | E134: 11 | F134: 11 | H134: 3.1 | I134: -9.588
B135: 3.2 | C135: 85.472 | D135: 62.16 | E135: 11 | F135: 11 | H135: 3.2 | I135: -9.832
B136: 3.3 | C136: 91.831 | D136: 65.03 | E136: 11 | F136: 11 | H136: 3.3 | I136: -10.076
B137: 3.4 | C137: 98.48 | D137: 67.96 | E137: 11 | F137: 11 | H137: 3.4 | I137: -10.32
B138: 3.5 | C138: 105.425 | D138: 70.95 | E138: 11 | F138: 11 | H138: 3.5 | I138: -10.564
B139: 3.6 | C139: 112.672 | D139: 74 | E139: 11 | F139: 11 | H139: 3.6 | I139: -10.808
B140: 3.7 | C140: 120.227 | D140: 77.11 | E140: 11 | F140: 11 | H140: 3.7 | I140: -11.052
B141: 3.8 | C141: 128.096 | D141: 80.28 | E141: 11 | F141: 11 | H141: 3.8 | I141: -11.296
B142: 3.9 | C142: 136.285 | D142: 83.51 | E142: 11 | F142: 11 | H142: 3.9 | I142: -11.54
B143: 4 | C143: 144.8 | D143: 86.8 | E143: 11 | F143: 11 | H143: 4 | I143: -11.784
B144: 4.1 | C144: 153.647 | D144: 90.15 | E144: 11 | F144: 11 | H144: 4.1 | I144: -12.028
B145: 4.2 | C145: 162.832 | D145: 93.56 | E145: 11 | F145: 11 | H145: 4.2 | I145: -12.272
B146: 4.3 | C146: 172.361 | D146: 97.03 | E146: 11 | F146: 11 | H146: 4.3 | I146: -12.516
B147: 4.4 | C147: 182.24 | D147: 100.56 | E147: 11 | F147: 11 | H147: 4.4 | I147: -12.76
B148: 4.5 | C148: 192.475 | D148: 104.15 | E148: 11 | F148: 11 | H148: 4.5 | I148: -13.004
B149: 4.6 | C149: 203.072 | D149: 107.8 | E149: 11 | F149: 11 | H149: 4.6 | I149: -13.248
B150: 4.7 | C150: 214.037 | D150: 111.51 | E150: 11 | F150: 11 | H150: 4.7 | I150: -13.492
B151: 4.8 | C151: 225.376 | D151: 115.28 | E151: 11 | F151: 11 | H151: 4.8 | I151: -13.736
B152: 4.9 | C152: 237.095 | D152: 119.11 | E152: 11 | F152: 11 | H152: 4.9 | I152: -13.98
B153: 5 | C153: 249.2 | D153: 123 | E153: 11 | F153: 11 | H153: 5 | I153: -14.224
B154: 5.1 | C154: 261.697 | D154: 126.95 | E154: 11 | F154: 11 | H154: 5.1 | I154: -14.468
B155: =B154+0.1 -> 5.2 | C155: =(M$6*B155^3+P$6*B155^2+S$6*B155+V$6) -> 274.592 | D155: =M$6*3*B155^2+2*P$6*B155+S$6 -> 130.96 | E155: 11 | F155: 11 | G155: =IF(F155=11,"",D155) ->  | H155: =B155 -> 5.2 | I155: =G$1*H155+(F$1-G$1*H$1) -> -14.712
B156: 5.3 | C156: 287.891 | D156: 135.03 | E156: 11 | F156: 11 | H156: 5.3 | I156: -14.956
B157: 5.4 | C157: 301.6 | D157: 139.16 | E157: 11 | F157: 11 | H157: 5.4 | I157: -15.2
B158: 5.5 | C158: 315.725 | D158: 143.35 | E158: 11 | F158: 11 | H158: 5.5 | I158: -15.444
B159: 5.6 | C159: 330.272 | D159: 147.6 | E159: 11 | F159: 11 | H159: 5.6 | I159: -15.688
B160: 5.7 | C160: 345.247 | D160: 151.91 | E160: 11 | F160: 11 | H160: 5.7 | I160: -15.932
B161: 5.8 | C161: 360.656 | D161: 156.28 | E161: 11 | F161: 11 | H161: 5.8 | I161: -16.176
B162: 5.9 | C162: 376.505 | D162: 160.71 | E162: 11 | F162: 11 | H162: 5.9 | I162: -16.42
B163: 6 | C163: 392.8 | D163: 165.2 | E163: 11 | F163: 11 | H163: 6 | I163: -16.664
B164: 6.1 | C164: 409.547 | D164: 169.75 | E164: 11 | F164: 11 | H164: 6.1 | I164: -16.908
B165: 6.2 | C165: 426.752 | D165: 174.36 | E165: 11 | F165: 11 | H165: 6.2 | I165: -17.152
B166: 6.3 | C166: 444.421 | D166: 179.03 | E166: 11 | F166: 11 | H166: 6.3 | I166: -17.396
B167: 6.4 | C167: 462.56 | D167: 183.76 | E167: 11 | F167: 11 | H167: 6.4 | I167: -17.64
B168: 6.5 | C168: 481.175 | D168: 188.55 | E168: 11 | F168: 11 | H168: 6.5 | I168: -17.884
B169: 6.6 | C169: 500.272 | D169: 193.4 | E169: 11 | F169: 11 | H169: 6.6 | I169: -18.128
B170: 6.7 | C170: 519.857 | D170: 198.31 | E170: 11 | F170: 11 | H170: 6.7 | I170: -18.372
B171: 6.8 | C171: 539.936 | D171: 203.28 | E171: 11 | F171: 11 | H171: 6.8 | I171: -18.616
B172: 6.9 | C172: 560.515 | D172: 208.31 | E172: 11 | F172: 11 | H172: 6.9 | I172: -18.86
B173: 7 | C173: 581.6 | D173: 213.4 | E173: 11 | F173: 11 | H173: 7 | I173: -19.104
B174: 7.1 | C174: 603.197 | D174: 218.55 | E174: 11 | F174: 11 | H174: 7.1 | I174: -19.348
B175: 7.2 | C175: 625.312 | D175: 223.76 | E175: 11 | F175: 11 | H175: 7.2 | I175: -19.592
B176: 7.3 | C176: 647.951 | D176: 229.03 | E176: 11 | F176: 11 | H176: 7.3 | I176: -19.836
B177: 7.4 | C177: 671.12 | D177: 234.36 | E177: 11 | F177: 11 | H177: 7.4 | I177: -20.08
B178: 7.5 | C178: 694.825 | D178: 239.75 | E178: 11 | F178: 11 | H178: 7.5 | I178: -20.324
B179: 7.6 | C179: 719.072 | D179: 245.2 | E179: 11 | F179: 11 | H179: 7.6 | I179: -20.568
B180: 7.7 | C180: 743.867 | D180: 250.71 | E180: 11 | F180: 11 | H180: 7.7 | I180: -20.812
B181: 7.8 | C181: 769.216 | D181: 256.28 | E181: 11 | F181: 11 | H181: 7.8 | I181: -21.056
B182: 7.9 | C182: 795.125 | D182: 261.91 | E182: 11 | F182: 11 | H182: 7.9 | I182: -21.3
B183: 8 | C183: 821.6 | D183: 267.6 | E183: 11 | F183: 11 | H183: 8 | I183: -21.544
B184: 8.1 | C184: 848.647 | D184: 273.35 | E184: 11 | F184: 11 | H184: 8.1 | I184: -21.788
B185: 8.2 | C185: 876.272 | D185: 279.16 | E185: 11 | F185: 11 | H185: 8.2 | I185: -22.032
B186: 8.3 | C186: 904.481 | D186: 285.03 | E186: 11 | F186: 11 | H186: 8.3 | I186: -22.276
B187: 8.4 | C187: 933.28 | D187: 290.96 | E187: 11 | F187: 11 | H187: 8.4 | I187: -22.52
B188: 8.5 | C188: 962.675 | D188: 296.95 | E188: 11 | F188: 11 | H188: 8.5 | I188: -22.764
B189: 8.6 | C189: 992.672 | D189: 303 | E189: 11 | F189: 11 | H189: 8.6 | I189: -23.008
B190: 8.7 | C190: 1023.277 | D190: 309.11 | E190: 11 | F190: 11 | H190: 8.7 | I190: -23.252
B191: 8.8 | C191: 1054.496 | D191: 315.28 | E191: 11 | F191: 11 | H191: 8.8 | I191: -23.496
B192: 8.9 | C192: 1086.335 | D192: 321.51 | E192: 11 | F192: 11 | H192: 8.9 | I192: -23.74
B193: 9 | C193: 1118.8 | D193: 327.8 | E193: 11 | F193: 11 | H193: 9 | I193: -23.984
B194: 9.1 | C194: 1151.897 | D194: 334.15 | E194: 11 | F194: 11 | H194: 9.1 | I194: -24.228
B195: 9.2 | C195: 1185.632 | D195: 340.56 | E195: 11 | F195: 11 | H195: 9.2 | I195: -24.472
B196: 9.3 | C196: 1220.011 | D196: 347.03 | E196: =IF((B196-AA$4)^2<0.001,D196,11) -> 11 | F196: =IF((B196-AA$4)^2<0.001,C196,11) -> 11 | H196: 9.3 | I196: -24.716
B197: 9.4 | C197: 1255.04 | D197: 353.56 | E197: 11 | F197: 11 | H197: 9.4 | I197: -24.96
B198: =B197+0.1 -> 9.5 | C198: =(M$6*B198^3+P$6*B198^2+S$6*B198+V$6) -> 1290.725 | D198: =M$6*3*B198^2+2*P$6*B198+S$6 -> 360.15 | E198: 11 | F198: 11 | G198: =IF(F198=11,"",D198) ->  | H198: =B198 -> 9.5 | I198: =G$1*H198+(F$1-G$1*H$1) -> -25.204
B199: 9.6 | C199: 1327.072 | D199: 366.8 | E199: 11 | F199: 11 | H199: 9.6 | I199: -25.448
B200: 9.7 | C200: 1364.087 | D200: 373.51 | E200: 11 | F200: 11 | H200: 9.7 | I200: -25.692
... 3 more rows

Sheet Gradient Function B
F1: =MIN(F3:F103) -> 0.912 | G1: =MAX(G3:G103) -> 3.76 | H1: =AA4 -> 3.4 | N1: =IF(M6=0,"",3) ->  | Q1: =IF(P2="","","2") -> 2
K2: y | L2: = | M2: =IF(M6=0,"",M6) ->  | N2: =IF(M6=0,"","x") ->  | O2: =IF(P6<0,"-",IF(P6=0,"",IF(M2="","","+"))) ->  | P2: =IF(P6=0,"",ABS(P6)) -> 1.2 | Q2: =IF(P2="","","x") -> x | R2: =IF(S6<0,"-",IF(S6=0,"",IF(Q2="","","+"))) -> - | S2: =IF(S6=0,"",ABS(S6)) -> 4.4 | T2: =IF(S2="","","x") -> x | U2: =IF(V6<0,"-",IF(V6=0,"","+")) -> + | V2: =ABS(V6) -> 2
B3: -10 | C3: =(M$6*B3^3+P$6*B3^2+S$6*B3+V$6) -> 166 | D3: =M$6*3*B3^2+2*P$6*B3+S$6 -> -28.4 | E3: =IF((B3-AA$4)^2<0.01,D3,11) -> 11 | F3: =IF((B3-AA$4)^2<0.01,C3,11) -> 11 | G3: =IF(F3=11,"",D3) ->  | H3: =IF(B3<AA$4-2,14,IF(B3>AA$4+2,14,B3)) -> 14 | I3: =IF(H3=14,14,G$1*H3+(F$1-G$1*H$1)) -> 14
B4: =B3+0.2 -> -9.8 | C4: =(M$6*B4^3+P$6*B4^2+S$6*B4+V$6) -> 160.368 | D4: -27.92 | E4: 11 | F4: 11 | G4: =IF(F4=11,"",D4) ->  | H4: 14 | I4: =IF(H4=14,14,G$1*H4+(F$1-G$1*H$1)) -> 14 | M4: 90 | P4: 90 | S4: 90 | V4: 90 | Y4: 45 | Z4: 62 | AA4: =(Z4-Y4)/5 -> 3.4
B5: =B4+0.2 -> -9.6 | C5: 154.832 | D5: -27.44 | E5: 11 | F5: 11 | H5: 14 | I5: 14 | M5: 90 | P5: 102 | S5: 46 | V5: 110
B6: -9.4 | C6: 149.392 | D6: -26.96 | E6: 11 | F6: 11 | H6: 14 | I6: 14 | M6: =(M5-M4)/10 -> 0 | P6: =(P5-P4)/10 -> 1.2 | S6: =(S5-S4)/10 -> -4.4 | V6: =(V5-V4)/10 -> 2
B7: -9.2 | C7: 144.048 | D7: -26.48 | E7: 11 | F7: 11 | H7: 14 | I7: 14 | K7: x | M7: y | N7: Gradient
B8: -9 | C8: 138.8 | D8: -26 | E8: 11 | F8: 11 | H8: 14 | I8: 14 | N8: values
B9: -8.8 | C9: 133.648 | D9: -25.52 | E9: 11 | F9: 11 | H9: 14 | I9: 14 | K9: -6 | M9: =C23 -> 71.6 | N9: =D23 -> -18.8
B10: -8.6 | C10: 128.592 | D10: -25.04 | E10: 11 | F10: 11 | H10: 14 | I10: 14 | K10: =K9+1 -> -5 | M10: =C28 -> 54 | N10: =D28 -> -16.4 | S10: x' value
B11: -8.4 | C11: 123.632 | D11: -24.56 | E11: 11 | F11: 11 | H11: 14 | I11: 14 | K11: =K10+1 -> -4 | M11: =C33 -> 38.8 | N11: =D33 -> -14 | S11: =H1 -> 3.4
B12: -8.2 | C12: 118.768 | D12: -24.08 | E12: 11 | F12: 11 | H12: 14 | I12: 14 | K12: -3 | M12: =C38 -> 26 | N12: =D38 -> -11.6
B13: -8 | C13: 114 | D13: -23.6 | E13: 11 | F13: 11 | H13: 14 | I13: =IF(H13=14,14,G$1*H13+(F$1-G$1*H$1)) -> 14 | K13: -2 | M13: =C43 -> 15.6 | N13: =D43 -> -9.2
B14: -7.8 | C14: 109.328 | D14: -23.12 | E14: 11 | F14: 11 | H14: 14 | I14: 14 | K14: -1 | M14: =C48 -> 7.6 | N14: =D48 -> -6.8
B15: -7.6 | C15: 104.752 | D15: -22.64 | E15: 11 | F15: 11 | H15: 14 | I15: 14 | K15: 0 | M15: =C53 -> 2 | N15: =D53 -> -4.4
B16: -7.4 | C16: 100.272 | D16: -22.16 | E16: 11 | F16: 11 | H16: 14 | I16: 14 | K16: 1 | M16: =C58 -> -1.2 | N16: =D58 -> -2
B17: -7.2 | C17: 95.888 | D17: -21.68 | E17: 11 | F17: 11 | H17: 14 | I17: 14 | K17: 2 | M17: =C63 -> -2 | N17: =D63 -> 0.4 | S17: Gradient at 'x'
B18: -7 | C18: 91.6 | D18: -21.2 | E18: 11 | F18: 11 | H18: 14 | I18: 14 | K18: 3 | M18: =C68 -> -0.4 | N18: =D68 -> 2.8 | S18: =G1 -> 3.76
B19: -6.8 | C19: 87.408 | D19: -20.72 | E19: 11 | F19: 11 | H19: 14 | I19: 14 | K19: 4 | M19: =C73 -> 3.6 | N19: =D73 -> 5.2
B20: -6.6 | C20: 83.312 | D20: -20.24 | E20: 11 | F20: 11 | H20: 14 | I20: 14 | K20: 5 | M20: =C78 -> 10 | N20: =D78 -> 7.6
B21: -6.4 | C21: 79.312 | D21: -19.76 | E21: 11 | F21: 11 | H21: 14 | I21: 14 | K21: 6 | M21: =C83 -> 18.8 | N21: =D83 -> 10
B22: -6.2 | C22: 75.408 | D22: -19.28 | E22: 11 | F22: 11 | H22: 14 | I22: 14
B23: -6 | C23: 71.6 | D23: -18.8 | E23: 11 | F23: 11 | H23: 14 | I23: 14
B24: -5.8 | C24: 67.888 | D24: -18.32 | E24: 11 | F24: 11 | H24: 14 | I24: 14
B25: -5.6 | C25: 64.272 | D25: -17.84 | E25: 11 | F25: 11 | H25: 14 | I25: 14
B26: -5.4 | C26: 60.752 | D26: -17.36 | E26: 11 | F26: 11 | H26: 14 | I26: 14
B27: -5.2 | C27: 57.328 | D27: -16.88 | E27: 11 | F27: 11 | H27: 14 | I27: 14
B28: -5 | C28: 54 | D28: -16.4 | E28: 11 | F28: 11 | H28: 14 | I28: 14
B29: -4.8 | C29: 50.768 | D29: -15.92 | E29: 11 | F29: 11 | H29: 14 | I29: 14
B30: -4.6 | C30: 47.632 | D30: -15.44 | E30: 11 | F30: 11 | H30: 14 | I30: 14
B31: -4.4 | C31: 44.592 | D31: -14.96 | E31: 11 | F31: 11 | H31: 14 | I31: 14
B32: -4.2 | C32: 41.648 | D32: -14.48 | E32: 11 | F32: 11 | H32: 14 | I32: 14
B33: -4 | C33: 38.8 | D33: -14 | E33: 11 | F33: 11 | H33: 14 | I33: 14
B34: -3.8 | C34: 36.048 | D34: -13.52 | E34: 11 | F34: 11 | H34: 14 | I34: 14
B35: -3.6 | C35: 33.392 | D35: =M$6*3*B35^2+2*P$6*B35+S$6 -> -13.04 | E35: =IF((B35-AA$4)^2<0.01,D35,11) -> 11 | F35: =IF((B35-AA$4)^2<0.01,C35,11) -> 11 | H35: =IF(B35<AA$4-2,14,IF(B35>AA$4+2,14,B35)) -> 14 | I35: 14
B36: -3.4 | C36: 30.832 | D36: -12.56 | E36: 11 | F36: 11 | H36: 14 | I36: 14
B37: -3.2 | C37: 28.368 | D37: -12.08 | E37: 11 | F37: 11 | H37: 14 | I37: 14
B38: -3 | C38: 26 | D38: -11.6 | E38: 11 | F38: 11 | H38: 14 | I38: 14
B39: -2.8 | C39: 23.728 | D39: -11.12 | E39: 11 | F39: 11 | H39: 14 | I39: 14
B40: -2.6 | C40: 21.552 | D40: -10.64 | E40: 11 | F40: 11 | H40: 14 | I40: 14
B41: -2.4 | C41: 19.472 | D41: -10.16 | E41: 11 | F41: 11 | H41: 14 | I41: 14
B42: -2.2 | C42: 17.488 | D42: -9.68 | E42: 11 | F42: 11 | H42: 14 | I42: 14
B43: -2 | C43: 15.6 | D43: -9.2 | E43: 11 | F43: 11 | H43: 14 | I43: 14
B44: -1.8 | C44: 13.808 | D44: -8.72 | E44: 11 | F44: 11 | H44: 14 | I44: 14
B45: -1.6 | C45: 12.112 | D45: -8.24 | E45: 11 | F45: 11 | H45: 14 | I45: 14
B46: -1.4 | C46: 10.512 | D46: -7.76 | E46: 11 | F46: 11 | H46: 14 | I46: 14
B47: -1.2 | C47: 9.008 | D47: -7.28 | E47: 11 | F47: 11 | H47: 14 | I47: 14
B48: -1 | C48: 7.6 | D48: -6.8 | E48: 11 | F48: 11 | H48: 14 | I48: 14
B49: -0.8 | C49: 6.288 | D49: -6.32 | E49: 11 | F49: 11 | H49: 14 | I49: 14
B50: -0.6 | C50: 5.072 | D50: -5.84 | E50: 11 | F50: 11 | H50: 14 | I50: 14
B51: -0.4 | C51: 3.952 | D51: -5.36 | E51: 11 | F51: 11 | H51: 14 | I51: 14
B52: -0.2 | C52: 2.928 | D52: -4.88 | E52: 11 | F52: 11 | H52: 14 | I52: 14
B53: -2.053912596e-15 | C53: 2 | D53: -4.4 | E53: 11 | F53: 11 | H53: 14 | I53: 14
B54: 0.2 | C54: 1.168 | D54: -3.92 | E54: 11 | F54: 11 | H54: 14 | I54: 14
B55: 0.4 | C55: 0.432 | D55: -3.44 | E55: 11 | F55: 11 | H55: 14 | I55: 14
B56: 0.6 | C56: -0.208 | D56: -2.96 | E56: 11 | F56: 11 | H56: 14 | I56: 14
B57: 0.8 | C57: -0.752 | D57: -2.48 | E57: 11 | F57: 11 | H57: 14 | I57: 14
B58: 1 | C58: -1.2 | D58: -2 | E58: 11 | F58: 11 | H58: 14 | I58: 14
B59: 1.2 | C59: -1.552 | D59: -1.52 | E59: 11 | F59: 11 | H59: 14 | I59: 14
B60: 1.4 | C60: -1.808 | D60: -1.04 | E60: 11 | F60: 11 | H60: 1.4 | I60: -6.608
B61: 1.6 | C61: -1.968 | D61: -0.56 | E61: 11 | F61: 11 | H61: 1.6 | I61: -5.856
B62: 1.8 | C62: -2.032 | D62: -0.08 | E62: 11 | F62: 11 | H62: 1.8 | I62: -5.104
B63: 2 | C63: -2 | D63: 0.4 | E63: 11 | F63: 11 | H63: 2 | I63: -4.352
B64: 2.2 | C64: -1.872 | D64: 0.88 | E64: 11 | F64: 11 | H64: 2.2 | I64: -3.6
B65: 2.4 | C65: -1.648 | D65: 1.36 | E65: 11 | F65: 11 | H65: 2.4 | I65: -2.848
B66: 2.6 | C66: -1.328 | D66: 1.84 | E66: 11 | F66: 11 | H66: 2.6 | I66: -2.096
B67: 2.8 | C67: -0.912 | D67: =M$6*3*B67^2+2*P$6*B67+S$6 -> 2.32 | E67: =IF((B67-AA$4)^2<0.01,D67,11) -> 11 | F67: =IF((B67-AA$4)^2<0.01,C67,11) -> 11 | H67: =IF(B67<AA$4-2,14,IF(B67>AA$4+2,14,B67)) -> 2.8 | I67: -1.344
B68: 3 | C68: =(M$6*B68^3+P$6*B68^2+S$6*B68+V$6) -> -0.4 | D68: 2.8 | E68: 11 | F68: 11 | G68: =IF(F68=11,"",D68) ->  | H68: 3 | I68: -0.592
B69: =B68+0.2 -> 3.2 | C69: 0.208 | D69: 3.28 | E69: 11 | F69: 11 | H69: 3.2 | I69: 0.16
B70: 3.4 | C70: 0.912 | D70: 3.76 | E70: 3.76 | F70: 0.912 | G70: 3.76 | H70: 3.4 | I70: 0.912
B71: 3.6 | C71: 1.712 | D71: 4.24 | E71: 11 | F71: 11 | H71: 3.6 | I71: 1.664
B72: 3.8 | C72: 2.608 | D72: 4.72 | E72: 11 | F72: 11 | H72: 3.8 | I72: 2.416
B73: 4 | C73: 3.6 | D73: 5.2 | E73: 11 | F73: 11 | H73: 4 | I73: 3.168
B74: 4.2 | C74: 4.688 | D74: 5.68 | E74: 11 | F74: 11 | H74: 4.2 | I74: 3.92
B75: 4.4 | C75: 5.872 | D75: 6.16 | E75: 11 | F75: 11 | H75: 4.4 | I75: 4.672
B76: 4.6 | C76: 7.152 | D76: 6.64 | E76: 11 | F76: 11 | H76: 4.6 | I76: 5.424
B77: 4.8 | C77: 8.528 | D77: 7.12 | E77: 11 | F77: 11 | H77: 4.8 | I77: =IF(H77=14,14,G$1*H77+(F$1-G$1*H$1)) -> 6.176
B78: 5 | C78: 10 | D78: 7.6 | E78: 11 | F78: 11 | H78: 5 | I78: 6.928
B79: 5.2 | C79: 11.568 | D79: 8.08 | E79: 11 | F79: 11 | H79: 5.2 | I79: 7.68
B80: 5.4 | C80: 13.232 | D80: 8.56 | E80: 11 | F80: 11 | H80: 5.4 | I80: 8.432
B81: 5.6 | C81: 14.992 | D81: 9.04 | E81: 11 | F81: 11 | H81: 14 | I81: 14
B82: 5.8 | C82: 16.848 | D82: 9.52 | E82: 11 | F82: 11 | H82: 14 | I82: 14
B83: 6 | C83: 18.8 | D83: 10 | E83: 11 | F83: 11 | H83: 14 | I83: 14
B84: 6.2 | C84: 20.848 | D84: 10.48 | E84: 11 | F84: 11 | H84: 14 | I84: 14
B85: 6.4 | C85: 22.992 | D85: 10.96 | E85: 11 | F85: 11 | H85: 14 | I85: 14
B86: 6.6 | C86: 25.232 | D86: 11.44 | E86: 11 | F86: 11 | H86: 14 | I86: 14
B87: 6.8 | C87: 27.568 | D87: 11.92 | E87: 11 | F87: 11 | H87: 14 | I87: 14
B88: 7 | C88: 30 | D88: 12.4 | E88: 11 | F88: 11 | H88: 14 | I88: 14
B89: 7.2 | C89: 32.528 | D89: 12.88 | E89: 11 | F89: 11 | H89: 14 | I89: 14
B90: 7.4 | C90: 35.152 | D90: 13.36 | E90: 11 | F90: 11 | H90: 14 | I90: 14
B91: 7.6 | C91: 37.872 | D91: 13.84 | E91: 11 | F91: 11 | H91: 14 | I91: 14
B92: 7.8 | C92: 40.688 | D92: 14.32 | E92: 11 | F92: 11 | H92: 14 | I92: 14
B93: 8 | C93: 43.6 | D93: 14.8 | E93: 11 | F93: 11 | H93: 14 | I93: 14
B94: 8.2 | C94: 46.608 | D94: 15.28 | E94: 11 | F94: 11 | H94: 14 | I94: 14
B95: 8.4 | C95: 49.712 | D95: 15.76 | E95: 11 | F95: 11 | H95: 14 | I95: 14
B96: 8.6 | C96: 52.912 | D96: 16.24 | E96: 11 | F96: 11 | H96: 14 | I96: 14
B97: 8.8 | C97: 56.208 | D97: 16.72 | E97: 11 | F97: 11 | H97: 14 | I97: 14
B98: 9 | C98: 59.6 | D98: 17.2 | E98: 11 | F98: 11 | H98: 14 | I98: 14
B99: 9.2 | C99: 63.088 | D99: 17.68 | E99: =IF((B99-AA$4)^2<0.01,D99,11) -> 11 | F99: 11 | H99: 14 | I99: 14
B100: 9.4 | C100: 66.672 | D100: 18.16 | E100: =IF((B100-AA$4)^2<0.01,D100,11) -> 11 | F100: 11 | H100: 14 | I100: 14
B101: 9.6 | C101: 70.352 | D101: 18.64 | E101: =IF((B101-AA$4)^2<0.01,D101,11) -> 11 | F101: 11 | H101: 14 | I101: 14
B102: 9.8 | C102: 74.128 | D102: 19.12 | E102: =IF((B102-AA$4)^2<0.01,D102,11) -> 11 | F102: 11 | H102: 14 | I102: 14
B103: 10 | C103: 78 | D103: 19.6 | E103: =IF((B103-AA$4)^2<0.01,D103,11) -> 11 | F103: 11 | H103: 14 | I103: 14

Sheet Gradient Function C
F1: =MIN(F3:F103) -> -0.56 | G1: =MAX(G3:G103) -> 2.4 | H1: =AA4 -> 3.2 | N1: =IF(M6=0,"",3) ->  | Q1: =IF(P2="","","2") -> 2
K2: y | L2: = | M2: =IF(M6=0,"",M6) ->  | N2: =IF(M6=0,"","x") ->  | O2: =IF(P6<0,"-",IF(P6=0,"",IF(M2="","","+"))) ->  | P2: =IF(P6=0,"",ABS(P6)) -> 1 | Q2: =IF(P2="","","x") -> x | R2: =IF(S6<0,"-",IF(S6=0,"",IF(Q2="","","+"))) -> - | S2: =IF(S6=0,"",ABS(S6)) -> 4 | T2: =IF(S2="","","x") -> x | U2: =IF(V6<0,"-",IF(V6=0,"","+")) -> + | V2: =ABS(V6) -> 2
B3: -10 | C3: =(M$6*B3^3+P$6*B3^2+S$6*B3+V$6) -> 142 | D3: =M$6*3*B3^2+2*P$6*B3+S$6 -> -24 | E3: =IF((B3-AA$4)^2<0.01,D3,11) -> 11 | F3: =IF((B3-AA$4)^2<0.01,C3,11) -> 11 | G3: =IF(F3=11,"",D3) ->  | H3: =B3 -> -10 | I3: =G$1*H3+(F$1-G$1*H$1) -> -32.24
B4: =B3+0.2 -> -9.8 | C4: 137.24 | D4: -23.6 | E4: 11 | F4: 11 | H4: =B4 -> -9.8 | I4: =G$1*H4+(F$1-G$1*H$1) -> -31.76 | M4: 90 | P4: 90 | S4: 90 | V4: 90 | Y4: 45 | Z4: 61 | AA4: =(Z4-Y4)/5 -> 3.2
B5: -9.6 | C5: 132.56 | D5: -23.2 | E5: 11 | F5: 11 | H5: -9.6 | I5: -31.28 | M5: 90 | P5: 100 | S5: 50 | V5: 110
B6: -9.4 | C6: 127.96 | D6: -22.8 | E6: 11 | F6: 11 | H6: -9.4 | I6: -30.8 | M6: =(M5-M4)/10 -> 0 | P6: =(P5-P4)/10 -> 1 | S6: =(S5-S4)/10 -> -4 | V6: =(V5-V4)/10 -> 2
B7: -9.2 | C7: 123.44 | D7: -22.4 | E7: 11 | F7: 11 | H7: -9.2 | I7: -30.32 | K7: x | M7: y | N7: Gradient
B8: -9 | C8: 119 | D8: -22 | E8: 11 | F8: 11 | H8: -9 | I8: -29.84 | N8: values
B9: -8.8 | C9: 114.64 | D9: -21.6 | E9: 11 | F9: 11 | H9: -8.8 | I9: -29.36 | K9: -6 | M9: =C23 -> 62 | N9: =D23 -> -16
B10: -8.6 | C10: 110.36 | D10: -21.2 | E10: 11 | F10: 11 | H10: -8.6 | I10: -28.88 | K10: =K9+1 -> -5 | M10: =C28 -> 47 | N10: =D28 -> -14 | S10: x' value
B11: -8.4 | C11: 106.16 | D11: -20.8 | E11: 11 | F11: 11 | H11: -8.4 | I11: -28.4 | K11: -4 | M11: =C33 -> 34 | N11: =D33 -> -12 | S11: =H1 -> 3.2
B12: -8.2 | C12: 102.04 | D12: -20.4 | E12: 11 | F12: 11 | H12: -8.2 | I12: -27.92 | K12: -3 | M12: =C38 -> 23 | N12: =D38 -> -10
B13: -8 | C13: 98 | D13: -20 | E13: 11 | F13: 11 | H13: -8 | I13: -27.44 | K13: -2 | M13: =C43 -> 14 | N13: =D43 -> -8
B14: -7.8 | C14: 94.04 | D14: -19.6 | E14: 11 | F14: 11 | H14: -7.8 | I14: -26.96 | K14: -1 | M14: =C48 -> 7 | N14: =D48 -> -6
B15: -7.6 | C15: 90.16 | D15: -19.2 | E15: 11 | F15: 11 | H15: -7.6 | I15: -26.48 | K15: 0 | M15: =C53 -> 2 | N15: =D53 -> -4
B16: -7.4 | C16: 86.36 | D16: -18.8 | E16: 11 | F16: 11 | H16: -7.4 | I16: -26 | K16: 1 | M16: =C58 -> -1 | N16: =D58 -> -2
B17: -7.2 | C17: 82.64 | D17: -18.4 | E17: 11 | F17: 11 | H17: -7.2 | I17: -25.52 | K17: 2 | M17: =C63 -> -2 | N17: =D63 -> -4.440892099e-15 | S17: Gradient at 'x'
B18: -7 | C18: 79 | D18: -18 | E18: 11 | F18: 11 | H18: -7 | I18: -25.04 | K18: 3 | M18: =C68 -> -1 | N18: =D68 -> 2 | S18: =G1 -> 2.4
B19: -6.8 | C19: 75.44 | D19: -17.6 | E19: 11 | F19: 11 | H19: -6.8 | I19: -24.56 | K19: 4 | M19: =C73 -> 2 | N19: =D73 -> 4
B20: -6.6 | C20: 71.96 | D20: -17.2 | E20: 11 | F20: 11 | H20: -6.6 | I20: -24.08 | K20: 5 | M20: =C78 -> 7 | N20: =D78 -> 6
B21: -6.4 | C21: 68.56 | D21: -16.8 | E21: 11 | F21: 11 | H21: -6.4 | I21: -23.6 | K21: 6 | M21: =C83 -> 14 | N21: =D83 -> 8
B22: -6.2 | C22: 65.24 | D22: -16.4 | E22: 11 | F22: 11 | H22: -6.2 | I22: -23.12
B23: -6 | C23: 62 | D23: -16 | E23: 11 | F23: 11 | H23: -6 | I23: -22.64
B24: -5.8 | C24: 58.84 | D24: -15.6 | E24: 11 | F24: 11 | H24: -5.8 | I24: -22.16
B25: -5.6 | C25: 55.76 | D25: -15.2 | E25: 11 | F25: 11 | H25: -5.6 | I25: -21.68
B26: -5.4 | C26: 52.76 | D26: -14.8 | E26: 11 | F26: 11 | H26: -5.4 | I26: -21.2
B27: -5.2 | C27: 49.84 | D27: -14.4 | E27: 11 | F27: 11 | H27: -5.2 | I27: -20.72
B28: -5 | C28: 47 | D28: -14 | E28: 11 | F28: 11 | H28: -5 | I28: -20.24
B29: -4.8 | C29: 44.24 | D29: -13.6 | E29: 11 | F29: 11 | H29: -4.8 | I29: -19.76
B30: -4.6 | C30: 41.56 | D30: -13.2 | E30: 11 | F30: 11 | H30: -4.6 | I30: -19.28
B31: -4.4 | C31: 38.96 | D31: -12.8 | E31: 11 | F31: 11 | H31: -4.4 | I31: -18.8
B32: -4.2 | C32: 36.44 | D32: -12.4 | E32: 11 | F32: 11 | H32: -4.2 | I32: -18.32
B33: -4 | C33: 34 | D33: -12 | E33: 11 | F33: 11 | H33: -4 | I33: -17.84
B34: -3.8 | C34: 31.64 | D34: -11.6 | E34: 11 | F34: 11 | H34: -3.8 | I34: -17.36
B35: -3.6 | C35: =(M$6*B35^3+P$6*B35^2+S$6*B35+V$6) -> 29.36 | D35: =M$6*3*B35^2+2*P$6*B35+S$6 -> -11.2 | E35: =IF((B35-AA$4)^2<0.01,D35,11) -> 11 | F35: =IF((B35-AA$4)^2<0.01,C35,11) -> 11 | G35: =IF(F35=11,"",D35) ->  | H35: -3.6 | I35: -16.88
B36: =B35+0.2 -> -3.4 | C36: 27.16 | D36: -10.8 | E36: 11 | F36: 11 | H36: -3.4 | I36: -16.4
B37: -3.2 | C37: 25.04 | D37: -10.4 | E37: 11 | F37: 11 | H37: -3.2 | I37: -15.92
B38: -3 | C38: 23 | D38: -10 | E38: 11 | F38: 11 | H38: -3 | I38: -15.44
B39: -2.8 | C39: 21.04 | D39: -9.6 | E39: 11 | F39: 11 | H39: -2.8 | I39: -14.96
B40: -2.6 | C40: 19.16 | D40: -9.2 | E40: 11 | F40: 11 | H40: -2.6 | I40: -14.48
B41: -2.4 | C41: 17.36 | D41: -8.8 | E41: 11 | F41: 11 | H41: -2.4 | I41: -14
B42: -2.2 | C42: 15.64 | D42: -8.4 | E42: 11 | F42: 11 | H42: -2.2 | I42: -13.52
B43: -2 | C43: 14 | D43: -8 | E43: 11 | F43: 11 | H43: -2 | I43: -13.04
B44: -1.8 | C44: 12.44 | D44: -7.6 | E44: 11 | F44: 11 | H44: -1.8 | I44: -12.56
B45: -1.6 | C45: 10.96 | D45: -7.2 | E45: 11 | F45: 11 | H45: -1.6 | I45: -12.08
B46: -1.4 | C46: 9.56 | D46: -6.8 | E46: 11 | F46: 11 | H46: -1.4 | I46: -11.6
B47: -1.2 | C47: 8.24 | D47: -6.4 | E47: 11 | F47: 11 | H47: -1.2 | I47: -11.12
B48: -1 | C48: 7 | D48: -6 | E48: 11 | F48: 11 | H48: -1 | I48: -10.64
B49: -0.8 | C49: 5.84 | D49: -5.6 | E49: 11 | F49: 11 | H49: -0.8 | I49: -10.16
B50: -0.6 | C50: 4.76 | D50: -5.2 | E50: 11 | F50: 11 | H50: -0.6 | I50: -9.68
B51: -0.4 | C51: 3.76 | D51: -4.8 | E51: 11 | F51: 11 | H51: -0.4 | I51: -9.2
B52: -0.2 | C52: 2.84 | D52: -4.4 | E52: 11 | F52: 11 | H52: -0.2 | I52: -8.72
B53: -2.053912596e-15 | C53: 2 | D53: -4 | E53: 11 | F53: 11 | H53: -2.053912596e-15 | I53: -8.24
B54: 0.2 | C54: 1.24 | D54: -3.6 | E54: 11 | F54: 11 | H54: 0.2 | I54: -7.76
B55: 0.4 | C55: 0.56 | D55: -3.2 | E55: 11 | F55: 11 | H55: 0.4 | I55: -7.28
B56: 0.6 | C56: -0.04 | D56: -2.8 | E56: 11 | F56: 11 | H56: 0.6 | I56: -6.8
B57: 0.8 | C57: -0.56 | D57: -2.4 | E57: 11 | F57: 11 | H57: 0.8 | I57: -6.32
B58: 1 | C58: -1 | D58: -2 | E58: 11 | F58: 11 | H58: 1 | I58: -5.84
B59: 1.2 | C59: -1.36 | D59: -1.6 | E59: 11 | F59: 11 | H59: 1.2 | I59: -5.36
B60: 1.4 | C60: -1.64 | D60: -1.2 | E60: 11 | F60: 11 | H60: 1.4 | I60: -4.88
B61: 1.6 | C61: -1.84 | D61: -0.8 | E61: 11 | F61: 11 | H61: 1.6 | I61: -4.4
B62: 1.8 | C62: -1.96 | D62: -0.4 | E62: 11 | F62: 11 | H62: 1.8 | I62: -3.92
B63: 2 | C63: -2 | D63: -4.440892099e-15 | E63: 11 | F63: 11 | H63: 2 | I63: -3.44
B64: 2.2 | C64: -1.96 | D64: 0.4 | E64: 11 | F64: 11 | H64: 2.2 | I64: -2.96
B65: 2.4 | C65: -1.84 | D65: 0.8 | E65: 11 | F65: 11 | H65: 2.4 | I65: -2.48
B66: 2.6 | C66: -1.64 | D66: 1.2 | E66: 11 | F66: 11 | H66: 2.6 | I66: -2
B67: 2.8 | C67: =(M$6*B67^3+P$6*B67^2+S$6*B67+V$6) -> -1.36 | D67: =M$6*3*B67^2+2*P$6*B67+S$6 -> 1.6 | E67: =IF((B67-AA$4)^2<0.01,D67,11) -> 11 | F67: =IF((B67-AA$4)^2<0.01,C67,11) -> 11 | G67: =IF(F67=11,"",D67) ->  | H67: 2.8 | I67: -1.52
B68: =B67+0.2 -> 3 | C68: -1 | D68: 2 | E68: 11 | F68: 11 | H68: =B68 -> 3 | I68: =G$1*H68+(F$1-G$1*H$1) -> -1.04
B69: 3.2 | C69: -0.56 | D69: 2.4 | E69: 2.4 | F69: -0.56 | G69: 2.4 | H69: 3.2 | I69: -0.56
B70: 3.4 | C70: -0.04 | D70: 2.8 | E70: 11 | F70: 11 | H70: 3.4 | I70: -0.08
B71: 3.6 | C71: 0.56 | D71: 3.2 | E71: 11 | F71: 11 | H71: 3.6 | I71: 0.4
B72: 3.8 | C72: 1.24 | D72: 3.6 | E72: 11 | F72: 11 | H72: 3.8 | I72: 0.88
B73: 4 | C73: 2 | D73: 4 | E73: 11 | F73: 11 | H73: 4 | I73: 1.36
B74: 4.2 | C74: 2.84 | D74: 4.4 | E74: 11 | F74: 11 | H74: 4.2 | I74: 1.84
B75: 4.4 | C75: 3.76 | D75: 4.8 | E75: 11 | F75: 11 | H75: 4.4 | I75: 2.32
B76: 4.6 | C76: 4.76 | D76: 5.2 | E76: 11 | F76: 11 | H76: 4.6 | I76: 2.8
B77: 4.8 | C77: 5.84 | D77: 5.6 | E77: 11 | F77: 11 | H77: 4.8 | I77: 3.28
B78: 5 | C78: 7 | D78: 6 | E78: 11 | F78: 11 | H78: 5 | I78: 3.76
B79: 5.2 | C79: 8.24 | D79: 6.4 | E79: 11 | F79: 11 | H79: 5.2 | I79: 4.24
B80: 5.4 | C80: 9.56 | D80: 6.8 | E80: 11 | F80: 11 | H80: 5.4 | I80: 4.72
B81: 5.6 | C81: 10.96 | D81: 7.2 | E81: 11 | F81: 11 | H81: 5.6 | I81: 5.2
B82: 5.8 | C82: 12.44 | D82: 7.6 | E82: 11 | F82: 11 | H82: 5.8 | I82: 5.68
B83: 6 | C83: 14 | D83: 8 | E83: 11 | F83: 11 | H83: 6 | I83: 6.16
B84: 6.2 | C84: 15.64 | D84: 8.4 | E84: 11 | F84: 11 | H84: 6.2 | I84: 6.64
B85: 6.4 | C85: 17.36 | D85: 8.8 | E85: 11 | F85: 11 | H85: 6.4 | I85: 7.12
B86: 6.6 | C86: 19.16 | D86: 9.2 | E86: 11 | F86: 11 | H86: 6.6 | I86: 7.6
B87: 6.8 | C87: 21.04 | D87: 9.6 | E87: 11 | F87: 11 | H87: 6.8 | I87: 8.08
B88: 7 | C88: 23 | D88: 10 | E88: 11 | F88: 11 | H88: 7 | I88: 8.56
B89: 7.2 | C89: 25.04 | D89: 10.4 | E89: 11 | F89: 11 | H89: 7.2 | I89: 9.04
B90: 7.4 | C90: 27.16 | D90: 10.8 | E90: 11 | F90: 11 | H90: 7.4 | I90: 9.52
B91: 7.6 | C91: 29.36 | D91: 11.2 | E91: 11 | F91: 11 | H91: 7.6 | I91: 10
B92: 7.8 | C92: 31.64 | D92: 11.6 | E92: 11 | F92: 11 | H92: 7.8 | I92: 10.48
B93: 8 | C93: 34 | D93: 12 | E93: 11 | F93: 11 | H93: 8 | I93: 10.96
B94: 8.2 | C94: 36.44 | D94: 12.4 | E94: 11 | F94: 11 | H94: 8.2 | I94: 11.44
B95: 8.4 | C95: 38.96 | D95: 12.8 | E95: 11 | F95: 11 | H95: 8.4 | I95: 11.92
B96: 8.6 | C96: 41.56 | D96: 13.2 | E96: 11 | F96: 11 | H96: 8.6 | I96: 12.4
B97: 8.8 | C97: 44.24 | D97: 13.6 | E97: 11 | F97: 11 | H97: 8.8 | I97: 12.88
B98: 9 | C98: 47 | D98: 14 | E98: 11 | F98: 11 | H98: 9 | I98: 13.36
B99: 9.2 | C99: =(M$6*B99^3+P$6*B99^2+S$6*B99+V$6) -> 49.84 | D99: 14.4 | E99: =IF((B99-AA$4)^2<0.01,D99,11) -> 11 | F99: 11 | G99: =IF(F99=11,"",D99) ->  | H99: 9.2 | I99: 13.84
B100: 9.4 | C100: =(M$6*B100^3+P$6*B100^2+S$6*B100+V$6) -> 52.76 | D100: 14.8 | E100: =IF((B100-AA$4)^2<0.01,D100,11) -> 11 | F100: 11 | G100: =IF(F100=11,"",D100) ->  | H100: 9.4 | I100: 14.32
B101: 9.6 | C101: =(M$6*B101^3+P$6*B101^2+S$6*B101+V$6) -> 55.76 | D101: 15.2 | E101: =IF((B101-AA$4)^2<0.01,D101,11) -> 11 | F101: 11 | G101: =IF(F101=11,"",D101) ->  | H101: 9.6 | I101: 14.8
B102: 9.8 | C102: =(M$6*B102^3+P$6*B102^2+S$6*B102+V$6) -> 58.84 | D102: 15.6 | E102: =IF((B102-AA$4)^2<0.01,D102,11) -> 11 | F102: 11 | G102: =IF(F102=11,"",D102) ->  | H102: 9.8 | I102: 15.28
B103: 10 | C103: =(M$6*B103^3+P$6*B103^2+S$6*B103+V$6) -> 62 | D103: 16 | E103: =IF((B103-AA$4)^2<0.01,D103,11) -> 11 | F103: 11 | G103: =IF(F103=11,"",D103) ->  | H103: 10 | I103: 15.76

Sheet Sheet2

Sheet Sheet3
